fUSD/lending_fUSD_20240821
["ID","MTS","AMOUNT","RATE_DAILY","PERIOD"]
[335466876,1724243443419,-500.0,0.00014008,2]
[335466878,1724243443428,-500.0,0.00014008,2]
[335466880,1724243443439,-500.0,0.00014008,2]
[335466882,1724243443448,-500.0,0.00014008,2]
[335466884,1724243443457,-500.0,0.00014008,2]
[335466886,1724243443467,-500.0,0.00014008,2]
[335466888,1724243443476,-500.0,0.00014008,2]
[335466890,1724243443485,-500.0,0.00014008,2]
[335466892,1724243443494,-500.0,0.00014008,2]
[335466893,1724243443503,-337.40121489,0.00014008,2]
[335466894,1724243443512,-500.0,0.00014008,2]
[335466895,1724243443521,-500.0,0.00014008,2]
[335466896,1724243443531,-500.0,0.00014008,2]
[335466897,1724243443540,-500.0,0.00014008,2]
[335466898,1724243443549,-883.59,0.00014008,2]
[335466899,1724243443558,-500.0,0.00014008,2]
[335466900,1724243443569,-500.0,0.00014008,2]
[335466901,1724243443578,-500.0,0.00014008,2]
[335466902,1724243443587,-989.08,0.00014008,2]
[335466903,1724243443596,-151.0,0.00014008,2]
[335466904,1724243443605,-500.0,0.00014008,2]
[335466905,1724243443614,-1143.7,0.00014008,2]
[335466906,1724243443623,-500.0,0.00014008,2]
[335466907,1724243443632,-500.0,0.00014008,2]
[335466908,1724243443643,-767.34,0.00014008,2]
[335466909,1724243443652,-500.0,0.00014008,2]
[335466910,1724243443662,-662.7,0.00014008,2]
[335466911,1724243443671,-500.0,0.00014008,2]
[335466912,1724243443681,-500.0,0.00014008,2]
[335466913,1724243443690,-1732.67,0.00014008,2]
[335466914,1724243443700,-151.0,0.00014008,2]
[335466915,1724243443710,-500.0,0.00014008,2]
[335466916,1724243443719,-875.55,0.00014008,2]
[335466917,1724243443728,-500.0,0.00014008,2]
[335466918,1724243443738,-1938.25,0.00014008,2]
[335466919,1724243443748,-256.625869,0.00014008,2]
[335466920,1724243443757,-4197.75,0.00014008,2]
[335466921,1724243443767,-500.0,0.00014008,2]
[335466922,1724243443777,-500.0,0.00014008,2]
[335466923,1724243443786,-500.0,0.00014008,2]
[335466924,1724243443796,-500.0,0.00014008,2]
[335466925,1724243443806,-500.0,0.00014008,2]
[335466926,1724243443817,-500.0,0.00014008,2]
[335466927,1724243443827,-663.14,0.00014008,2]
[335466928,1724243443836,-500.0,0.00014008,2]
[335466929,1724243443845,-500.0,0.00014008,2]
[335466930,1724243443854,-500.0,0.00014008,2]
[335466931,1724243443865,-720.27,0.00014008,2]
[335466932,1724243443874,-151.0,0.00014008,2]
[335466933,1724243443883,-151.0,0.00014008,2]
[335466934,1724243443895,-1308.32,0.00014008,2]
[335466935,1724243443904,-4302.94,0.00014008,2]
[335466936,1724243443913,-500.0,0.00014008,2]
[335466937,1724243443923,-500.0,0.00014008,2]
[335466938,1724243443931,-500.0,0.00014008,2]
[335466939,1724243443940,-500.0,0.00014008,2]
[335466940,1724243443949,-2630.68,0.00014008,2]
[335466941,1724243443959,-500.0,0.00014008,2]
[335466942,1724243443968,-500.0,0.00014008,2]
[335466943,1724243443977,-500.0,0.00014008,2]
[335466944,1724243443987,-500.0,0.00014008,2]
[335466945,1724243443997,-742.74,0.00014008,2]
[335466946,1724243444007,-600.0,0.00014008,2]
[335466947,1724243444017,-500.0,0.00014008,2]
[335466948,1724243444029,-500.0,0.00014008,2]
[335466949,1724243444038,-151.0,0.00014008,2]
[335466950,1724243444047,-151.0,0.00014008,2]
[335466951,1724243444056,-151.0,0.00014008,2]
[335466952,1724243444067,-189.991438,0.00014008,2]
[335466953,1724243444076,-518.79,0.00014008,2]
[335466954,1724243444085,-500.0,0.00014008,2]
[335466955,1724243444094,-500.0,0.00014008,2]
[335466956,1724243444104,-500.0,0.00014008,2]
[335466957,1724243444113,-500.0,0.00014008,2]
[335466958,1724243444123,-521.57,0.00014008,2]
[335466959,1724243444132,-500.0,0.00014008,2]
[335466960,1724243444141,-1471.1,0.00014008,2]
[335466961,1724243444151,-500.0,0.00014008,2]
[335466962,1724243444160,-500.0,0.00014008,2]
[335466963,1724243444169,-500.0,0.00014008,2]
[335466964,1724243444179,-151.0,0.00014008,2]
[335466965,1724243444189,-1460.54,0.00014008,2]
[335466966,1724243444199,-151.0,0.00014008,2]
[335466967,1724243444211,-151.0,0.00014008,2]
[335466968,1724243444220,-151.0,0.00014008,2]
[335466969,1724243444230,-151.0,0.00014008,2]
[335466970,1724243444239,-151.0,0.00014008,2]
[335466971,1724243444248,-151.0,0.00014008,2]
[335466972,1724243444257,-8297.87,0.00014008,2]
[335466973,1724243444266,-500.0,0.00014008,2]
[335466974,1724243444276,-3614.02,0.00014008,2]
[335466975,1724243444286,-567.34,0.00014008,2]
[335466976,1724243444295,-16352.92,0.00014008,2]
[335466977,1724243444305,-500.0,0.00014008,2]
[335466978,1724243444314,-41890.07,0.00014008,2]
[335466979,1724243444323,-500.0,0.00014008,2]
[335466980,1724243444332,-1721.58,0.00014008,2]
[335466981,1724243444342,-500.0,0.00014008,2]
[335466982,1724243444351,-500.0,0.00014008,2]
[335466983,1724243444360,-500.0,0.00014008,2]
[335466984,1724243444369,-500.0,0.00014008,2]
[335466985,1724243444378,-4021.9,0.00014008,2]
[335466986,1724243444387,-500.0,0.00014008,2]
[335466987,1724243444398,-639.87261788,0.00014008,2]
[335466988,1724243444407,-483.19879107,0.00014008,2]
[335466989,1724243444416,-500.0,0.00014008,2]
[335466990,1724243444425,-6083.77,0.00014008,2]
[335466991,1724243444434,-500.0,0.00014008,2]
[335466992,1724243444443,-500.0,0.00014008,2]
[335466993,1724243444452,-23246.29,0.00014008,2]
[335466994,1724243444461,-500.0,0.00014008,2]
[335466995,1724243444470,-508.55492786,0.00014008,2]
[335466996,1724243444479,-500.0,0.00014008,2]
[335466997,1724243444488,-500.0,0.00014008,2]
[335466998,1724243444497,-500.0,0.00014008,2]
[335466999,1724243444507,-500.0,0.00014008,2]
[335467000,1724243444517,-2185.57,0.00014008,2]
[335467001,1724243444526,-4339.02,0.00014008,2]
[335467002,1724243444535,-500.0,0.00014008,2]
[335467003,1724243444544,-500.0,0.00014008,2]
[335467004,1724243444553,-500.0,0.00014008,2]
[335467005,1724243444563,-500.0,0.00014008,2]
[335467006,1724243444572,-5753.83,0.00014008,2]
[335467007,1724243444581,-500.0,0.00014008,2]
[335467008,1724243444590,-500.0,0.00014008,2]
[335467009,1724243444599,-500.0,0.00014008,2]
[335467010,1724243444608,-500.0,0.00014008,2]
[335467011,1724243444618,-2841.25,0.00014008,2]
[335467012,1724243444627,-500.0,0.00014008,2]
[335467013,1724243444636,-500.0,0.00014008,2]
[335467014,1724243444645,-500.0,0.00014008,2]
[335467015,1724243444654,-969.3,0.00014008,2]
[335467016,1724243444663,-5368.98,0.00014008,2]
[335467017,1724243444672,-500.0,0.00014008,2]
[335467018,1724243444682,-500.0,0.00014008,2]
[335467019,1724243444691,-500.0,0.00014008,2]
[335467020,1724243444701,-1599.41,0.00014008,2]
[335467021,1724243444710,-500.0,0.00014008,2]
[335467022,1724243444718,-151.0,0.00014008,2]
[335467023,1724243444728,-151.0,0.00014008,2]
[335467024,1724243444737,-151.0,0.00014008,2]
[335467025,1724243444746,-151.0,0.00014008,2]
[335467026,1724243444755,-1511.65,0.00014008,2]
[335467027,1724243444764,-534.9606566,0.00014008,2]
[335467028,1724243444774,-3038.97,0.00014008,2]
[335467029,1724243444783,-500.0,0.00014008,2]
[335467030,1724243444793,-500.0,0.00014008,2]
[335467031,1724243444803,-3534.08,0.00014008,2]
[335467032,1724243444812,-500.0,0.00014008,2]
[335467033,1724243444825,-1062.92,0.00014008,2]
[335467034,1724243444834,-500.0,0.00014008,2]
[335467035,1724243444845,-1030.23,0.00014008,2]
[335467036,1724243444854,-2454.22,0.00014008,2]
[335467037,1724243444864,-500.0,0.00014008,2]
[335467038,1724243444873,-2537.25,0.00014008,2]
[335467039,1724243444882,-4593.37,0.00014008,2]
[335467040,1724243444895,-260.39863624,0.00014008,2]
[335467041,1724243444909,-183.97398844,0.00014009,2]
[335467042,1724243444918,-160.067348,0.00014009,2]
[335467043,1724243444926,-151.0,0.00014009,2]
[335467044,1724243444935,-151.0,0.00014009,2]
[335467045,1724243444944,-151.0,0.00014009,2]
[335467046,1724243444953,-151.0,0.00014009,2]
[335467047,1724243444962,-151.0,0.00014009,2]
[335467048,1724243444971,-151.0,0.00014009,2]
[335467049,1724243444980,-282.931068,0.00014009,2]
[335467050,1724243444989,-151.0,0.00014009,2]
[335467051,1724243444998,-151.0,0.00014009,2]
[335467052,1724243445008,-151.0,0.00014009,2]
[335467053,1724243445017,-151.0,0.00014009,2]
[335467054,1724243445026,-151.0,0.00014009,2]
[335467055,1724243445035,-151.0,0.00014009,2]
[335467056,1724243445045,-151.0,0.00014009,2]
[335467057,1724243445054,-3237.1381,0.00014009,2]
[335467058,1724243445063,-500.0,0.00014009,2]
[335467059,1724243445072,-65839.7843,0.00014009,2]
[335467060,1724243445082,-194046.0893,0.00014009,2]
[335467061,1724243445091,-4874.1918,0.00014009,2]
[335467062,1724243445100,-1938.7076,0.00014009,2]
[335467063,1724243445109,-88479.2731,0.00014009,2]
[335467064,1724243445119,-1000.0,0.00014009,2]
[335467065,1724243445128,-619.16244216,0.00014041,2]
[335467066,1724243445137,-150.82,0.00014069,2]
[335467067,1724243445148,-17082.0946031,0.00014074,3]
[335467068,1724243445158,-25242.60152222,0.00014079,3]
[335467069,1724243445174,-537.93447606,0.00014079,3]
[335467070,1724243445189,-384.644286,0.00014079,3]
[335467071,1724243445200,-735.2,0.00014079,3]
[335467072,1724243445211,-6496.46948832,0.00014079,3]
[335467073,1724243445221,-511.70455756,0.00014079,3]
[335467074,1724243445238,-3536.06282993,0.00014079,3]
[335467075,1724243445251,-1744.37850203,0.00014079,3]
[335467076,1724243445263,-1370.37733886,0.00014079,3]
[335467077,1724243445274,-500.0,0.00014079,3]
[335467078,1724243445286,-681.43362743,0.00014079,3]
[335467079,1724243445298,-405.02610424,0.00014079,3]
[335467080,1724243445310,-7939.06706332,0.00014079,3]
[335467082,1724243446677,-695.01,0.00013998,2]
[335467083,1724243446687,-1161.38401323,0.00014079,3]
[335467084,1724243446696,-8157.10332829,0.0001408,3]
[335467085,1724243446719,-1056.33719568,0.0001408,3]
[335467086,1724243447004,-359.11331769,0.00013998,3]
[335467088,1724243690909,154.95,0.00010959,2]
[335467090,1724243866788,295.28528212,0.00010999,2]
[335467114,1724244548050,327.44,0.00010908,2]
[335467126,1724244631822,-1476.78718249,0.00011999,2]
[335467127,1724244631878,-1928.60193204,0.00011999,2]
[335467128,1724244631889,-200.0,0.00012769,2]
[335467129,1724244631901,-169.79,0.00012828,2]
[335467130,1724244631915,-150.0,0.00012847,2]
[335467131,1724244631933,-448.36,0.00012853,2]
[335467132,1724244631947,-2387.38977175,0.00012968,2]
[335467133,1724244631958,-800.0,0.00012969,2]
[335467134,1724244631971,-9435.60981364,0.00012984,2]
[335467135,1724244631988,-1945.56018636,0.00012984,2]
[335467136,1724244632000,-150.0,0.00013041,2]
[335467137,1724244632011,-292.76862131,0.00013052,2]
[335467138,1724244632022,-155.0,0.00013052,2]
[335467139,1724244632035,-499.99,0.00013052,2]
[335467140,1724244632048,-230.08,0.00013066,2]
[335467141,1724244632060,-327.44,0.00013172,2]
[335467142,1724244632072,-9961.13277913,0.000132,2]
[335467143,1724244632087,-826.32428039,0.000132,2]
[335467144,1724244632107,-1536.2100348,0.000132,2]
[335467145,1724244632119,-500.0,0.00013292,2]
[335467146,1724244632131,-150.0,0.0001356,2]
[335467147,1724244632143,-607.25,0.000137,2]
[335467148,1724244632155,-426.41,0.000137,2]
[335467149,1724244632168,-150.0,0.000137,2]
[335467150,1724244632184,-410.016937,0.00013766,2]
[335467151,1724244632196,-3235.2613,0.000138,2]
[335467152,1724244632208,-698.09,0.000138,2]
[335467153,1724244632223,-735.51,0.000138,2]
[335467154,1724244632235,-150.0,0.00013891,2]
[335467155,1724244632248,-1000.0,0.00013892,2]
[335467156,1724244632261,-18114.8392,0.00013892,2]
[335467157,1724244632272,-25410.48495438,0.00013898,2]
[335467158,1724244632285,-510.811,0.00013898,2]
[335467159,1724244632300,-2174.8637,0.00013899,2]
[335467160,1724244632312,-17923.5690312,0.000139,2]
[335467161,1724244632385,-1500.0,0.000139,2]
[335467162,1724244638014,-1459.1801688,0.000139,2]
[335467163,1724244638023,-164.84,0.00013987,3]
[335467164,1724244638032,-494.55,0.00013987,3]
[335467165,1724244638042,-329.68,0.00013988,3]
[335467166,1724244638051,-445.67712844,0.00013993,3]
[335467167,1724244638060,-1114.1928211,0.00013995,3]
[335467168,1724244638070,-15818.8985414,0.00013995,3]
[335467169,1724244638079,-150.82,0.00013995,2]
[335467170,1724244638089,-150.82,0.00013995,2]
[335467171,1724244638098,-500.0,0.00013997,2]
[335467172,1724244638107,-500.0,0.00013997,2]
[335467173,1724244638116,-500.0,0.00013997,2]
[335467174,1724244638125,-547.47470408,0.00013997,2]
[335467175,1724244638135,-500.0,0.00013997,2]
[335467176,1724244638144,-500.0,0.00013997,2]
[335467178,1724244638153,-500.0,0.00013997,2]
[335467180,1724244638163,-500.0,0.00013997,2]
[335467182,1724244638171,-500.0,0.00013997,2]
[335467184,1724244638181,-500.0,0.00013997,2]
[335467186,1724244638192,-550.89718507,0.00013997,2]
[335467188,1724244638202,-500.0,0.00013997,2]
[335467190,1724244638211,-500.0,0.00013997,2]
[335467192,1724244638223,-406.04522109,0.00013997,2]
[335467194,1724244638232,-500.0,0.00013997,2]
[335467196,1724244638241,-1018.63,0.00013997,2]
[335467198,1724244638251,-500.0,0.00013997,2]
[335467200,1724244638261,-213.51776603,0.00013997,2]
[335467202,1724244638270,-718.78,0.00013997,2]
[335467204,1724244638279,-500.0,0.00013997,2]
[335467206,1724244638289,-580.15873914,0.00013997,2]
[335467208,1724244638301,-500.0,0.00013997,2]
[335467210,1724244638311,-500.0,0.00013997,2]
[335467212,1724244638320,-1690.12,0.00013997,2]
[335467214,1724244638330,-5129.78,0.00013997,2]
[335467216,1724244638339,-9244.96,0.00013997,2]
[335467218,1724244638348,-15818.8985414,0.00013998,3]
[335467220,1724244638357,-500.0,0.00013998,2]
[335467222,1724244638366,-500.0,0.00013998,2]
[335467224,1724244638375,-500.0,0.00013998,2]
[335467226,1724244638384,-500.0,0.00013998,2]
[335467228,1724244638394,-500.0,0.00013998,2]
[335467229,1724244638403,-846.77,0.00013998,2]
[335467232,1724244638413,-500.0,0.00013998,2]
[335467233,1724244638422,-500.0,0.00013998,2]
[335467235,1724244638431,-500.0,0.00013998,2]
[335467237,1724244638443,-500.0,0.00013998,2]
[335467239,1724244638461,-500.0,0.00013998,2]
[335467241,1724244638471,-500.0,0.00013998,2]
[335467243,1724244638479,-225.37105793,0.00013998,2]
[335467245,1724244638488,-533.41018009,0.00013998,2]
[335467247,1724244638497,-1408.42,0.00013998,2]
[335467249,1724244638506,-500.0,0.00013998,2]
[335467251,1724244638516,-594.94,0.00013998,2]
[335467253,1724244638525,-681.16,0.00013998,2]
[335467255,1724244638534,-1348.49,0.00013998,2]
[335467257,1724244638543,-500.0,0.00013998,2]
[335467259,1724244638552,-3440.01,0.00013998,2]
[335467261,1724244638562,-3296.12,0.00013998,2]
[335467263,1724244638570,-1457.12,0.00013998,2]
[335467265,1724244638579,-500.0,0.00013998,2]
[335467267,1724244638588,-756.5,0.00013998,2]
[335467269,1724244638598,-500.0,0.00013998,2]
[335467271,1724244638607,-500.0,0.00013998,2]
[335467273,1724244638616,-1219.24,0.00013998,2]
[335467274,1724244638626,-500.0,0.00013998,2]
[335467276,1724244638637,-500.0,0.00013998,2]
[335467279,1724244638647,-500.0,0.00013998,2]
[335467280,1724244638656,-500.0,0.00013998,2]
[335467282,1724244638665,-500.0,0.00013998,2]
[335467284,1724244638675,-1455.29,0.00013998,2]
[335467286,1724244638684,-504.28124754,0.00013998,2]
[335467288,1724244638697,-500.0,0.00013998,2]
[335467290,1724244638706,-500.0,0.00013998,2]
[335467292,1724244638715,-500.0,0.00013998,2]
[335467294,1724244638724,-500.0,0.00013998,2]
[335467296,1724244638734,-500.0,0.00013998,2]
[335467298,1724244638743,-500.0,0.00013998,2]
[335467300,1724244638753,-518.77359184,0.00013998,2]
[335467302,1724244638762,-500.0,0.00013998,2]
[335467304,1724244638771,-625.08,0.00013998,2]
[335467306,1724244638781,-500.0,0.00013998,2]
[335467308,1724244638790,-500.0,0.00013998,2]
[335467310,1724244638799,-500.0,0.00013998,2]
[335467312,1724244638809,-162.95551938,0.00013998,2]
[335467314,1724244638820,-500.0,0.00013998,2]
[335467316,1724244638829,-500.0,0.00013998,2]
[335467318,1724244638839,-500.0,0.00013998,2]
[335467320,1724244638849,-500.0,0.00013998,2]
[335467323,1724244638860,-500.0,0.00013998,2]
[335467325,1724244638870,-500.0,0.00013998,2]
[335467327,1724244638880,-225.96002401,0.00013998,2]
[335467329,1724244638891,-500.0,0.00013998,2]
[335467331,1724244638901,-500.0,0.00013998,2]
[335467333,1724244638911,-500.0,0.00013998,2]
[335467334,1724244638920,-500.0,0.00013998,2]
[335467336,1724244638930,-500.0,0.00013998,2]
[335467338,1724244638941,-186.2061814,0.00013998,2]
[335467340,1724244638950,-500.0,0.00013998,2]
[335467342,1724244638959,-500.0,0.00013998,2]
[335467344,1724244638969,-500.0,0.00013998,2]
[335467346,1724244638978,-3428.68,0.00013998,2]
[335467347,1724244638988,-201.89753387,0.00013998,2]
[335467350,1724244638999,-500.0,0.00013998,2]
[335467352,1724244639009,-500.0,0.00013998,2]
[335467353,1724244639018,-500.0,0.00013998,2]
[335467356,1724244639030,-500.0,0.00013998,2]
[335467358,1724244639041,-500.0,0.00013998,2]
[335467360,1724244639051,-500.0,0.00013998,2]
[335467362,1724244639061,-500.0,0.00013998,2]
[335467364,1724244639071,-500.0,0.00013998,2]
[335467366,1724244639083,-583.48,0.00013998,2]
[335467368,1724244639092,-500.0,0.00013998,2]
[335467370,1724244639102,-500.0,0.00013998,2]
[335467372,1724244639111,-500.0,0.00013998,2]
[335467374,1724244639120,-523.45123283,0.00013998,2]
[335467376,1724244639129,-500.0,0.00013998,2]
[335467378,1724244639138,-3776.83,0.00013998,2]
[335467380,1724244639148,-500.0,0.00013998,2]
[335467382,1724244639157,-500.0,0.00013998,2]
[335467384,1724244639167,-15480.64,0.00013998,2]
[335467385,1724244639176,-500.0,0.00013998,2]
[335467387,1724244639186,-500.0,0.00013998,2]
[335467390,1724244639196,-977.76,0.00013998,2]
[335467391,1724244639205,-889.26,0.00013998,2]
[335467393,1724244639215,-6425.5,0.00013998,2]
[335467395,1724244639226,-500.0,0.00013998,2]
[335467397,1724244639235,-8504.06,0.00013998,2]
[335467399,1724244639245,-500.0,0.00013998,2]
[335467401,1724244639254,-500.0,0.00013998,2]
[335467403,1724244639265,-500.0,0.00013998,2]
[335467405,1724244639274,-500.0,0.00013998,2]
[335467407,1724244639283,-2823.24,0.00013998,2]
[335467409,1724244639295,-500.0,0.00013998,2]
[335467411,1724244639304,-500.0,0.00013998,2]
[335467413,1724244639314,-500.0,0.00013998,2]
[335467415,1724244639323,-5040.0434651,0.00013998,2]
[335467417,1724244639333,-500.0,0.00013998,2]
[335467419,1724244639342,-543.5527407,0.00013998,2]
[335467421,1724244639351,-500.0,0.00013998,2]
[335467423,1724244639360,-500.0,0.00013998,2]
[335467425,1724244639369,-729.16,0.00013998,2]
[335467427,1724244639378,-500.0,0.00013998,2]
[335467429,1724244639388,-500.0,0.00013998,2]
[335467431,1724244639397,-4627.29,0.00013998,2]
[335467433,1724244639406,-500.0,0.00013998,2]
[335467435,1724244639415,-49773.601,0.00013999,2]
[335467436,1724244639425,-5508.20349889,0.00014,2]
[335467439,1724244639439,-995.86179291,0.00014,2]
[335467441,1724244639450,-154.3438042,0.00014,2]
[335467443,1724244639460,-500.0,0.00014003,2]
[335467445,1724244639469,-500.0,0.00014003,2]
[335467447,1724244639478,-10.91994209,0.00014003,2]
[335467500,1724244639991,-3306.78005791,0.00014003,2]
[335467502,1724244640001,-6608.68,0.00014003,2]
[335467504,1724244640011,-500.0,0.00014003,2]
[335467506,1724244640021,-330.13093052,0.00014003,2]
[335467515,1724244640100,-20761.27906948,0.00014003,2]
[335467517,1724244640110,-5154.39,0.00014003,2]
[335467519,1724244640119,-2298.41547812,0.00014003,2]
[335467538,1724244640319,-2005.91381506,0.00014003,2]
[335467541,1724244640332,-1788.524246,0.00014003,2]
[335467543,1724244640343,-10.52646082,0.00014003,2]
[335467545,1724244640353,-247.53353918,0.00014003,2]
[335467547,1724244640364,-834.30484756,0.00014003,2]
[335467824,1724244643566,-500.0,0.00013997,2]
[335467826,1724244643576,-3079.05145836,0.00013998,2]
[335468440,1724244789324,153.06,0.00010959,2]
[335468441,1724244893733,1050.0,0.0001,2]
[335468442,1724245255762,963.12546208,0.00010999,2]
[335468443,1724245323013,546.48427168,0.00010999,2]
[335468444,1724245357944,500.0,0.00010999,2]
[335468445,1724245366370,581.58746899,0.00010999,2]
[335468446,1724245381380,159.22,0.00010959,2]
[335468447,1724245382207,601.36,0.00010999,2]
[335468448,1724245515127,372.08359245,0.00010999,2]
[335468449,1724245519551,1000.0,0.00011,2]
[335468450,1724245661069,292.76862131,0.00010999,2]
[335468451,1724245702426,330.58,0.00010748,2]
[335468460,1724245832037,-962.49486884,0.00011336,2]
[335468461,1724245832047,-463.2666374,0.00012,2]
[335468462,1724245832059,-636.7333626,0.00012,2]
[335468463,1724245832068,-3405.38911453,0.00012089,2]
[335468464,1724245832079,-179.56262738,0.000126,2]
[335468465,1724245832088,-150.0,0.000126,2]
[335468466,1724245832098,-39832.92013858,0.000126,2]
[335468467,1724245832107,-300.0,0.00012612,2]
[335468468,1724245832117,-300.0,0.00012612,2]
[335468469,1724245832127,-184.06,0.00012678,2]
[335468470,1724245832136,-160.0,0.00012718,2]
[335468471,1724245832146,-171.66,0.00012795,2]
[335468472,1724245832156,-428.22,0.00012938,2]
[335468473,1724245832166,-150.0,0.00012965,2]
[335468474,1724245832175,-2380.42,0.00012966,2]
[335468475,1724245832185,-574.18,0.00012966,2]
[335468476,1724245832195,-499.99,0.00012966,2]
[335468477,1724245832204,-500.0,0.00012966,2]
[335468478,1724245832214,-458.42,0.00012966,2]
[335468479,1724245832224,-840.0,0.00012968,2]
[335468480,1724245832233,-190.1,0.0001298,2]
[335468481,1724245832243,-298.46,0.0001298,2]
[335468482,1724245832252,-330.58,0.00013012,2]
[335468483,1724245832261,-155.0,0.00013052,2]
[335468484,1724245832271,-155.0,0.00013052,2]
[335468485,1724245832281,-364.0,0.0001314,2]
[335468487,1724245832291,-698.37,0.0001314,2]
[335468489,1724245832301,-491.86512668,0.000132,2]
[335468491,1724245832310,-364.0,0.0001344,2]
[335468493,1724245832321,-364.0,0.0001375,2]
[335468494,1724245832331,-420.0,0.00013836,2]
[335468496,1724245832340,-309.58122108,0.00013896,2]
[335468498,1724245832350,-2087.3055,0.00013897,2]
[335468500,1724245832361,-1696.2184,0.00013897,2]
[335468502,1724245832371,-259.17,0.00013898,2]
[335468504,1724245832380,-1000.0,0.00013898,2]
[335468505,1724245832389,-6498.0575,0.00013898,2]
[335468507,1724245832398,-1389.3022,0.00013898,2]
[335468509,1724245832408,-14079.9361,0.00013898,2]
[335468511,1724245832418,-560.2683,0.00013898,2]
[335468512,1724245832427,-8107.7912,0.00013898,2]
[335468513,1724245832437,-7500.0,0.000139,2]
[335468514,1724245832446,-523.94927818,0.000139,2]
[335468515,1724245832455,-1841.74459009,0.000139,2]
[335468516,1724245832466,-164.46104347,0.00013902,2]
[335468517,1724245832475,-494.52,0.00013979,3]
[335468518,1724245832485,-494.52,0.00013979,3]
[335468519,1724245832494,-164.46104346,0.00013984,2]
[335468520,1724245832503,-20212.6,0.00013989,2]
[335468521,1724245832512,-4939.62,0.00013989,2]
[335468522,1724245832522,-500.0,0.00013989,2]
[335468523,1724245832532,-698.78,0.00013989,2]
[335468524,1724245832541,-5849.07,0.00013989,2]
[335468525,1724245832550,-1351.58,0.00013989,2]
[335468526,1724245832559,-3935.01,0.00013989,2]
[335468527,1724245832569,-196.49980654,0.00013989,2]
[335468528,1724245832578,-279.06947401,0.00013989,2]
[335468529,1724245832588,-2441.49,0.00013989,2]
[335468530,1724245832597,-2374.03,0.00013989,2]
[335468531,1724245832611,-9517.12,0.00013989,2]
[335468532,1724245832621,-3343.9,0.00013989,2]
[335468533,1724245832630,-4916.04,0.00013989,2]
[335468534,1724245832639,-7620.84,0.00013989,2]
[335468535,1724245832650,-500.0,0.00013989,2]
[335468536,1724245832659,-8859.75,0.00013989,2]
[335468537,1724245832669,-1747.51,0.00013989,2]
[335468538,1724245832681,-500.0,0.00013989,2]
[335468539,1724245832691,-16097.81,0.00013989,2]
[335468540,1724245832700,-3179.46,0.00013989,2]
[335468541,1724245832710,-5067.5,0.00013989,2]
[335468542,1724245832720,-500.0,0.00013989,2]
[335468543,1724245832729,-6333.32,0.00013989,2]
[335468544,1724245832739,-20000.0,0.00013989,2]
[335468545,1724245832748,-150.82,0.0001399,2]
[335468546,1724245832758,-150.82,0.0001399,2]
[335468547,1724245832767,-150.82,0.0001399,2]
[335468548,1724245832778,-150.82,0.0001399,2]
[335468549,1724245832788,-150.82,0.0001399,2]
[335468550,1724245832964,-150.82,0.0001399,2]
[335468551,1724245832974,-150.82,0.0001399,2]
[335468552,1724245832983,-150.82,0.0001399,2]